bitfinex/quotes_ETHUSD_20240618
["timestamp","ask_amount","ask_price","bid_price","bid_amount"]
[1718683805820,3.72403555,3440.2,3439.5,2.3021]
[1718683806046,1.6111908,3440.2,3439.5,2.3021]
[1718683808479,3.0,3440.4,3439.5,2.3021]
[1718683810744,2.3379,3440.3,3438.7,5.19837]
[1718683811107,5.3379,3440.3,3438.7,5.19837]
[1718683811431,8.4039,3440.3,3438.7,2.2903]
[1718683811645,6.01938137,3440.2,3438.7,2.2903]
[1718683811808,3.0,3440.1,3438.7,5.19837]
[1718683812216,6.066,3440.1,3438.7,2.2903]
[1718683815358,3.066,3440.0,3438.7,2.2903]
[1718683815515,3.0,3439.9,3438.7,2.2903]
[1718683815714,4.24814865,3439.9,3438.7,3.100977]
[1718683816689,1.24814865,3439.9,3438.7,3.100977]
[1718683818603,1.24814865,3439.9,3438.8,2.90798]
[1718683818802,1.24814865,3439.9,3438.7,3.100977]
[1718683818803,3.0,3440.1,3438.7,3.100977]
[1718683819083,2.11312296,3440.0,3438.7,6.008967]
[1718683819293,1.87708094,3440.0,3438.9,2.9079]
[1718683819475,3.0,3440.1,3438.8,2.90799]
[1718683819476,3.0,3440.1,3439.1,2.2803]
[1718683821668,3.0,3440.2,3439.1,2.2803]
[1718683821973,3.0,3440.4,3439.1,2.2803]
[1718683822182,5.78119648,3440.6,3439.1,5.188]
[1718683822367,2.11285719,3440.5,3439.2,0.58506567]
[1718683823636,5.11285719,3440.5,3439.2,0.58506567]
[1718683823927,3.0,3440.5,3439.3,2.3945]
[1718683824079,3.0,3440.5,3439.4,0.59454113]
[1718683824283,3.0,3440.5,3439.4,0.65268675]
[1718683824508,0.50305445,3440.6,3439.4,3.50201113]
[1718683824667,3.50305445,3440.6,3439.5,2.3945]
[1718683827001,3.50305445,3440.6,3439.5,5.30189]
[1718683827173,3.50305445,3440.6,3439.6,3.84583054]
[1718683827384,3.50156567,3440.6,3439.6,3.84583054]
[1718683827706,3.0,3440.6,3439.6,0.88039011]
[1718683828362,3.0,3440.6,3439.7,0.05813874]
[1718683828804,3.0,3440.6,3439.6,0.88039011]
[1718683829106,3.0,3440.6,3439.7,0.67768212]
[1718683829271,5.2781,3440.9,3439.7,0.67768212]
[1718683829610,2.11254468,3440.8,3439.7,0.67768212]
[1718683829909,3.0,3440.8,3439.7,0.67768212]
[1718683830293,5.2781,3440.9,3439.7,0.67768212]
[1718683830470,3.9209559,3440.8,3439.7,0.67768212]
[1718683830670,3.0,3440.7,3439.7,0.67768212]
[1718683830871,4.80841,3440.8,3439.7,0.67768212]
[1718683832196,2.11254484,3440.7,3439.8,2.49603871]
[1718683832399,5.11254484,3440.7,3439.8,2.4379]
[1718683832611,3.0,3440.7,3439.9,0.60228521]
[1718683832813,5.28,3441.0,3439.9,0.60228521]
[1718683833039,2.11250279,3440.9,3439.9,0.60228521]
[1718683833240,5.11250279,3440.9,3439.9,0.60228521]
[1718683833395,2.11250279,3440.8,3439.9,0.60228521]
[1718683833598,5.11250279,3440.8,3439.9,0.60228521]
[1718683833802,1.48525028,3440.8,3439.8,2.4379]
[1718683834215,2.11247066,3440.7,3439.8,2.4379]
[1718683834439,5.11247066,3440.7,3439.8,2.4379]
[1718683834643,3.0,3440.7,3439.8,2.4379]
[1718683834826,1.48525028,3440.8,3439.8,2.4379]
[1718683835012,2.4890239,3440.7,3439.8,2.4379]
[1718683835215,2.11251122,3440.6,3439.8,2.4379]
[1718683841623,0.863,3440.5,3439.8,2.4379]
[1718683841838,2.11251122,3440.4,3439.8,2.4379]
[1718683843431,2.11251122,3440.3,3439.8,2.4379]
[1718683843641,0.863,3440.6,3439.9,0.534519]
[1718683843843,2.11244475,3440.5,3439.9,0.534519]
[1718683845567,2.11244475,3440.4,3439.9,0.534519]
[1718683845770,0.863,3440.7,3439.9,0.534519]
[1718683845945,2.11239618,3440.6,3439.9,0.534519]
[1718683846284,2.11239618,3440.6,3440.0,0.6742619]
[1718683846467,2.11239618,3440.6,3440.1,2.4532]
[1718683847881,2.78295086,3441.0,3440.2,0.05813323]
[1718683848087,2.1122964,3440.9,3440.3,2.3983]
[1718683848310,2.1122964,3440.9,3440.5,0.863]
[1718683848579,7.43,3441.1,3440.6,2.476]
[1718683849152,2.11204005,3441.0,3440.6,2.476]
[1718683849583,7.43,3441.1,3440.6,2.476]
[1718683852255,7.43,3441.1,3440.7,0.05812292]
[1718683852455,7.43,3441.1,3440.8,0.54406729]
[1718683852692,0.50286346,3441.4,3440.8,0.54406729]
[1718683853182,3.50286346,3441.5,3440.8,0.54406729]
[1718683853379,2.1119203,3441.4,3440.8,0.54406729]
[1718683853581,3.50286346,3441.8,3440.8,0.54406729]
[1718683853805,2.11191912,3441.7,3440.8,0.54406729]
[1718683854293,2.11191912,3441.7,3440.9,2.4997]
[1718683854495,3.0,3441.9,3440.9,2.4997]
[1718683854496,2.11191912,3441.6,3440.9,2.4997]
[1718683854804,3.0,3442.0,3440.9,2.4997]
[1718683855010,2.11182374,3441.9,3440.9,2.4997]
[1718683855216,2.11182374,3441.8,3441.0,0.59500573]
[1718683855370,3.0,3442.0,3441.0,0.59500573]
[1718683855371,2.11182374,3441.7,3441.0,0.59500573]
[1718683855570,3.0,3442.0,3441.0,0.59500573]
[1718683855921,3.0,3442.0,3440.9,2.4997]
[1718683855922,2.11182565,3441.9,3440.9,2.4997]
[1718683856076,2.11182565,3441.8,3440.9,2.4997]
[1718683856284,3.0,3442.0,3440.9,2.4997]
[1718683856491,2.11182569,3441.9,3440.9,2.4997]
[1718683856691,2.11182569,3441.8,3441.0,2.373]
[1718683856915,3.0,3442.0,3441.0,2.373]
[1718683857116,2.11182374,3441.9,3441.0,2.373]
[1718683857290,2.11182374,3441.8,3441.0,2.373]
[1718683857485,3.0,3442.0,3441.1,0.6708909]
[1718683857690,3.50286346,3442.2,3441.1,0.6708909]
[1718683857889,3.50286346,3442.2,3441.0,2.373]
[1718683857890,2.11170029,3442.1,3441.0,2.373]
[1718683858100,5.11170029,3442.1,3441.0,2.373]
[1718683858333,2.11170029,3442.0,3441.0,2.373]
[1718683858517,5.11170029,3442.0,3441.0,2.373]
[1718683858719,3.0,3442.0,3441.0,2.373]
[1718683859021,0.50286346,3442.2,3441.1,0.38397891]
[1718683859022,3.50286346,3442.2,3441.1,0.38397891]
[1718683859196,3.50286346,3442.2,3441.2,2.3053]
[1718683859407,0.50286346,3442.2,3441.3,0.05811319]
[1718683859622,9.71,3442.3,3441.4,2.3053]
[1718683860022,2.28,3442.3,3441.4,2.3053]
[1718683860226,2.28,3442.3,3441.5,0.521126]
[1718683863259,2.28,3442.3,3441.6,2.41010639]
[1718683863554,2.28,3442.3,3441.7,0.05810337]
[1718683864597,2.28,3442.3,3441.7,2.90553]
[1718683864905,2.28,3442.3,3441.8,2.2599]
[1718683865113,2.28,3442.3,3441.9,0.516543]
[1718683865325,0.50268241,3443.0,3441.9,0.516543]
[1718683865656,3.0,3443.0,3441.9,0.516543]
[1718683865955,3.0,3443.1,3442.0,2.4854]
[1718683866130,3.50268241,3443.1,3442.0,2.4854]
[1718683866363,2.11115588,3443.0,3442.1,0.5907303]
[1718683866627,3.0,3443.1,3442.2,2.3978]
[1718683866803,3.066,3443.7,3442.2,2.3978]
[1718683866804,7.43,3443.9,3442.3,3.0058954]
[1718683867017,2.11071036,3443.8,3442.6,2.90477]
[1718683867192,2.3893,3444.0,3442.7,2.3978]
[1718683867730,3.5685292,3444.3,3442.8,0.05808514]
[1718683867934,2.11062224,3444.2,3442.8,0.05808514]
[1718683868139,1.75176514,3444.1,3442.9,0.53605751]
[1718683868295,2.84102209,3444.3,3443.0,2.4832]
[1718683868497,5.11058345,3444.2,3443.0,2.4832]
[1718683868698,3.0,3444.2,3443.0,2.4832]
[1718683868945,5.3385,3444.3,3443.0,2.4832]
[1718683869161,5.3385,3444.3,3443.1,0.59237575]
[1718683869848,2.28,3444.5,3443.2,2.44187939]
[1718683871134,5.28,3444.5,3443.2,2.44187939]
[1718683872440,5.28,3444.5,3443.2,2.3838]
[1718683872672,5.28,3444.5,3443.3,0.05807733]
[1718683872842,2.28,3444.5,3443.4,2.4125]
[1718683875342,2.2562,3444.4,3443.4,2.4125]
[1718683875538,5.2562,3444.4,3443.4,2.4125]
[1718683876037,5.2542,3444.4,3443.4,2.4125]
[1718683876238,7.3242,3444.4,3443.4,2.4125]
[1718683876439,7.82666766,3444.4,3442.6,2.90477]
[1718683876676,7.82666766,3444.4,3442.8,2.3576]
[1718683876994,3.0,3444.4,3443.1,2.90435]
[1718683877151,3.0,3444.4,3442.9,2.90451]
[1718683877152,3.0,3444.4,3443.2,2.3576]
[1718683877480,3.0,3444.4,3443.3,0.23576]
[1718683877647,3.0,3444.4,3443.2,2.3576]
[1718683877847,6.066,3444.4,3443.2,2.3576]
[1718683879051,4.4296,3444.1,3442.5,5.26356]
[1718683879398,2.3596,3443.6,3442.5,2.3587]
[1718683879737,5.3596,3443.6,3442.5,2.3587]
[1718683880877,2.07,3443.5,3442.5,2.3587]
[1718683881067,5.07,3443.5,3442.5,2.3587]
[1718683881396,5.07,3443.5,3441.9,2.4054]
[1718683881397,8.136,3443.5,3441.9,2.4054]
[1718683881579,5.136,3443.1,3441.9,2.4054]
[1718683881784,3.0,3443.0,3441.9,2.4054]
[1718683882758,2.4388,3442.9,3441.9,2.4054]
[1718683882962,1.05748,3442.8,3441.9,2.4054]
[1718683883158,4.05748,3442.8,3441.9,2.4054]
[1718683883679,4.05748,3442.8,3441.2,5.33295]
[1718683883906,4.05748,3442.8,3441.3,2.90587]
[1718683884677,3.56851861,3443.0,3441.8,2.90543]
[1718683884678,0.50251861,3443.0,3441.8,2.90543]
[1718683884949,2.28,3443.2,3442.4,2.90493]
[1718683885186,2.28,3443.2,3442.5,2.96294094]
[1718683885393,2.28,3443.2,3442.5,2.90485]
[1718683886167,2.28,3443.2,3442.3,5.21383]
[1718683886503,2.28,3443.2,3442.4,1.3619]
[1718683887160,2.28,3443.2,3442.4,4.26684]
[1718683887901,2.28,3443.2,3442.4,0.8119]
[1718683888194,2.28,3443.2,3441.7,2.90549]
[1718683888195,2.28,3443.2,3441.8,2.2686]
[1718683888559,8.346,3443.2,3441.8,2.2686]
[1718683888775,2.07,3442.9,3441.8,2.2686]
[1718683890595,3.0,3443.1,3441.8,2.2686]
[1718683890798,4.32468211,3443.1,3441.9,0.517421]
[1718683891027,4.32468211,3443.1,3441.8,2.2686]
[1718683891671,2.11143835,3443.0,3441.8,2.2686]
[1718683891870,4.82740325,3443.1,3441.8,2.2686]
[1718683892105,4.32468211,3443.1,3441.8,2.2686]
[1718683892412,2.11138128,3443.0,3441.8,2.2686]
[1718683892605,1.22847845,3442.9,3441.8,2.2686]
[1718683892819,4.22847845,3442.9,3441.8,2.2686]
[1718683893108,2.07,3442.6,3441.3,2.405]
[1718683893476,5.07,3442.6,3441.3,2.405]
[1718683893675,0.92070075,3442.5,3441.3,2.405]
[1718683893985,6.25430075,3442.5,3441.3,2.405]
[1718683894291,6.75706795,3442.5,3441.3,2.405]
[1718683894609,6.25430075,3442.5,3441.3,2.405]
[1718683896117,6.25430075,3442.5,3440.8,2.4994]
[1718683896272,2.99432843,3442.4,3440.9,0.540576]
[1718683896472,0.8827068,3442.4,3440.9,0.540576]
[1718683897174,2.11169129,3442.3,3440.9,0.540576]
[1718683897371,2.11169129,3442.3,3440.8,2.4994]
[1718683897785,2.11169129,3442.3,3440.8,5.4994]
[1718683899196,2.11169129,3442.3,3440.8,8.4057]
[1718683899912,2.11169129,3442.3,3441.0,5.38341]
[1718683900114,3.0,3442.5,3441.4,2.90577]
[1718683900330,3.0,3442.5,3441.5,0.581164]
[1718683900623,3.0,3442.8,3441.6,2.4773]
[1718683900802,2.11141204,3442.7,3441.6,2.4773]
[1718683901711,4.95338352,3442.9,3441.6,5.38288]
[1718683901712,0.50278352,3442.9,3441.6,5.38288]
[1718683901897,2.11131672,3442.8,3441.7,0.8869764]
[1718683902216,7.43,3443.0,3441.7,0.8869764]
[1718683902423,2.11131843,3442.9,3441.7,0.8869764]
[1718683903292,5.11131843,3442.9,3441.7,0.8869764]
[1718683903612,3.50278352,3442.9,3441.8,2.90542]
[1718683903804,3.0,3443.1,3441.9,0.91752764]
[1718683903998,2.1112709,3443.0,3441.9,0.91752764]
[1718683906474,3.0,3443.1,3441.9,0.91752764]
[1718683906475,2.11120395,3442.9,3441.9,0.91752764]
[1718683906711,3.0,3443.1,3441.9,0.91752764]
[1718683906912,2.11114155,3443.0,3442.0,0.38229476]
[1718683908591,2.11114155,3443.0,3441.9,0.91752764]
[1718683910594,2.11114155,3443.0,3441.6,2.4773]
[1718683912477,2.07,3442.9,3441.6,2.4773]
[1718683912677,2.11114155,3442.8,3441.6,2.4773]
[1718683918661,2.11114155,3442.8,3441.8,2.3636]
[1718683923161,2.11114155,3442.8,3441.9,0.05809951]
[1718683923368,2.11114155,3442.8,3442.0,0.82326395]
[1718683923686,2.11114155,3442.7,3442.0,0.82326395]
[1718683923895,2.11114155,3442.6,3442.0,0.82326395]
[1718683924108,2.11114155,3442.5,3442.0,0.82326395]
[1718683924380,2.11115276,3442.4,3442.0,0.82326395]
[1718683924685,3.0,3443.1,3441.9,0.05809951]
[1718683924686,7.43,3442.8,3442.1,0.61504135]
[1718683924884,2.11109474,3442.7,3442.1,0.61504135]
[1718683927692,2.11109474,3442.7,3442.2,2.48579904]
[1718683927991,2.28,3443.2,3442.3,2.4277]
[1718683927992,2.78269831,3443.2,3442.3,2.4277]
[1718683928184,2.11086539,3443.1,3442.3,5.33271]
[1718683928494,2.11086539,3443.1,3442.4,0.68097514]
[1718683930160,2.11086539,3443.1,3442.4,1.54297514]
[1718683930365,2.11086539,3443.0,3442.5,2.3695]
[1718683930594,7.43,3443.3,3442.5,5.27433]
[1718683930792,2.11077194,3443.2,3442.5,5.27433]
[1718683930994,2.11077194,3443.2,3442.6,0.97223151]
[1718683932489,2.11077194,3443.2,3442.7,2.50938664]
[1718683932904,0.862,3443.4,3442.7,2.50938664]
[1718683933103,2.11060975,3443.3,3442.7,2.50938664]
[1718683933304,2.11060975,3443.3,3442.7,3.24424233]
[1718683934222,0.862,3443.2,3442.7,2.4513]
[1718683934511,2.11060975,3443.1,3442.7,2.4513]
[1718683938485,0.862,3443.2,3442.7,2.4513]
[1718683938693,2.11079152,3443.1,3442.7,2.4513]
[1718683942790,0.862,3443.4,3442.7,2.4513]
[1718683942994,2.11077799,3443.3,3442.7,2.78263]
[1718683944582,2.11077799,3443.3,3442.7,2.4513]
[1718683944784,0.862,3443.2,3442.7,2.4513]
[1718683945084,2.11077799,3443.1,3442.7,2.4513]
[1718683945910,2.11077799,3443.0,3442.7,2.4513]
[1718683946118,0.862,3443.2,3442.7,2.4513]
[1718683946420,0.862,3443.0,3442.7,2.4513]
[1718683946614,2.11078885,3442.9,3442.7,2.4513]
[1718683946792,2.1108918,3442.8,3442.7,2.4513]
[1718683947103,2.11088881,3442.8,3442.7,2.4513]
[1718683948127,2.11088881,3443.1,3442.7,2.4513]
[1718683953830,2.11088881,3443.1,3442.7,2.69643]
[1718683954019,2.11088881,3443.0,3442.7,2.69643]
[1718683954223,8.292,3443.6,3442.7,2.69643]
[1718683954420,2.11075859,3443.5,3442.7,2.69643]
[1718683954621,2.11075859,3443.5,3442.8,0.05808657]
[1718683954941,7.9325665,3443.9,3443.4,2.9041]
[1718683955096,2.11030407,3443.8,3443.5,0.92007328]
[1718683955301,7.43,3444.4,3443.5,0.92007328]
[1718683955506,2.11021074,3444.3,3443.5,0.92007328]
[1718683955747,2.97221074,3444.3,3443.5,0.05807328]
[1718683955945,2.11021074,3444.2,3443.5,0.05807328]
[1718683957247,2.11021074,3444.2,3443.3,2.3312]
[1718683957442,0.862,3444.1,3443.3,2.3312]
[1718683957603,2.11021074,3444.0,3443.3,2.3312]
[1718683958443,2.11021074,3444.0,3443.4,2.90405]
[1718683958612,7.43,3444.4,3443.7,2.4313]
[1718683958802,2.11008337,3444.3,3443.8,0.05806686]
[1718683959010,2.11008337,3444.3,3443.8,0.68358955]
[1718683959330,7.43,3444.4,3444.0,2.4313]
[1718683959527,7.43,3444.4,3444.1,0.05806427]
[1718683959744,0.5025665,3444.8,3444.1,0.05806427]
[1718683959920,8.292,3445.0,3444.1,0.05806427]
[1718683959921,2.10985118,3444.7,3444.1,0.05806427]
[1718683960119,8.292,3445.0,3444.1,0.05806427]
[1718683960120,7.43,3445.0,3444.1,1.60811997]
[1718683960316,2.10982009,3444.9,3444.1,4.51161997]
[1718683960741,2.10982009,3444.9,3444.1,1.60811997]
[1718683960913,2.10982009,3444.9,3444.1,1.5500557]
[1718683961615,2.10982009,3444.9,3444.1,0.6880557]
[1718683962329,2.10982009,3444.9,3444.0,2.4313]
[1718683962751,2.10982009,3444.9,3444.1,0.05806202]
[1718683962956,2.10982009,3444.9,3444.2,0.05806069]
[1718683963278,7.9325665,3445.3,3444.2,0.05806069]
[1718683963425,2.10980535,3445.2,3444.2,0.05806069]
[1718683963741,2.10980535,3445.1,3444.2,0.59735576]
[1718683963917,3.0,3445.4,3444.2,0.53929507]
[1718683964122,2.10979339,3445.3,3444.0,2.4313]
[1718683964320,2.10979339,3445.2,3444.0,2.4313]
[1718683964543,2.10979339,3445.1,3444.0,2.4313]
[1718683964728,2.10979339,3445.0,3444.0,2.4313]
[1718683964919,2.10979339,3444.9,3444.0,2.4313]
[1718683965130,3.0,3445.4,3444.0,2.964814]
[1718683965361,2.10990566,3445.3,3444.0,2.4313]
[1718683965529,2.10990566,3445.2,3444.0,2.4313]
[1718683965735,2.10990566,3445.1,3444.0,2.4313]
[1718683965956,2.10990566,3445.0,3444.0,2.4313]
[1718683966156,2.10990566,3444.9,3444.0,2.4313]
[1718683966334,3.0,3445.4,3444.1,0.24313]
[1718683966658,2.109895,3445.3,3444.0,2.4313]
[1718683966870,2.10989495,3445.2,3444.0,2.4313]
[1718683967020,2.10989625,3445.1,3444.0,2.4313]
[1718683967228,3.0,3445.4,3444.0,2.4313]
[1718683967229,2.10989625,3445.0,3444.0,2.4313]
[1718683967566,2.10989625,3444.9,3444.0,2.4313]
[1718683967765,3.0,3445.4,3444.0,2.964814]
[1718683967963,2.10991507,3445.3,3444.0,2.4313]
[1718683968146,2.10991507,3445.2,3444.0,2.4313]
[1718683968484,2.10991507,3445.1,3444.0,2.4313]
[1718683968630,2.10991507,3445.0,3444.0,2.4313]
[1718683968949,3.0,3445.4,3444.1,0.05806072]
[1718683969148,2.90914375,3445.3,3444.2,2.3325]
[1718683969353,5.10989847,3445.2,3444.3,0.05806021]
[1718683969559,2.10989847,3445.1,3444.3,0.05806021]
[1718683970342,2.10989847,3445.1,3444.2,2.3325]
[1718683970758,2.10989847,3445.1,3444.2,2.856109]
[1718683971075,3.0,3445.2,3444.2,2.856109]
[1718683971381,0.79924528,3445.3,3444.3,0.05805853]
[1718683971534,2.10975115,3445.2,3444.3,0.05805853]
[1718683971884,5.10975115,3445.2,3444.3,0.05805853]
[1718683972080,3.0,3445.2,3444.3,0.05805853]
[1718683972238,0.79924528,3445.3,3444.3,0.05805853]
[1718683972557,2.1097446,3445.2,3444.3,0.05805853]
[1718683972731,5.1097446,3445.2,3444.3,0.05805853]
[1718683972928,4.13330899,3445.2,3444.2,2.856109]
[1718683973140,3.0,3445.1,3444.2,2.856109]
[1718683973347,1.13330899,3445.2,3444.2,2.856109]
[1718683973747,3.0,3445.4,3444.2,2.856109]
[1718683973947,2.10976752,3445.3,3444.2,2.3325]
[1718683974153,2.10976752,3445.2,3444.2,2.3325]
[1718683974354,2.10976752,3445.1,3444.2,2.3325]
[1718683974674,2.10976752,3445.0,3444.2,2.3325]
[1718683974851,0.21097675,3445.0,3444.2,2.3325]
[1718683975039,3.0,3445.4,3444.2,2.3325]
[1718683975367,2.1098744,3445.3,3444.2,2.3325]
[1718683975568,2.1098744,3445.2,3444.2,2.3325]
[1718683975749,2.1098744,3445.1,3444.2,2.3325]
[1718683975950,3.0,3445.4,3444.2,2.3325]
[1718683976158,2.90908623,3445.3,3444.2,2.3325]
[1718683976455,5.10984073,3445.2,3444.2,2.3325]
[1718683976657,2.10984073,3445.1,3444.2,2.3325]
[1718683977243,3.0,3445.2,3444.2,2.3325]
[1718683977660,0.7992455,3445.3,3444.2,2.3325]
[1718683977835,2.73208404,3445.2,3444.2,2.3325]
[1718683978040,3.0,3445.1,3444.2,2.3325]
[1718683978374,0.62233455,3445.2,3444.2,2.3325]
[1718683979837,0.50235499,3445.6,3444.3,3.0275]
[1718683980050,0.50235499,3446.1,3444.6,2.4775]
[1718683980234,0.50235499,3446.1,3444.8,2.4775]
[1718683980679,0.50235499,3446.1,3444.9,0.05805076]
[1718683980863,7.93235499,3446.1,3444.9,0.05805076]
[1718683981176,4.80090875,3446.0,3444.9,0.05805076]
[1718683981358,2.10931325,3445.9,3444.9,0.05805076]
[1718683981543,0.86,3445.8,3444.9,0.05805076]
[1718683982177,0.86,3445.8,3444.8,3.3375]
[1718683983091,0.86,3445.5,3444.8,2.4775]
[1718683983383,3.0,3445.9,3444.8,2.4775]
[1718683983384,0.86,3445.3,3444.8,2.4775]
[1718683984307,0.86,3445.1,3444.8,2.4775]
[1718683984582,0.86,3444.9,3444.5,2.3369]
[1718683985148,0.86,3445.1,3444.5,2.3369]
[1718683985452,1.129,3445.1,3444.5,2.3369]
[1718683993410,2.10976209,3445.0,3444.5,2.3369]
[1718683995414,2.10976209,3444.9,3444.5,2.3369]
[1718683995634,3.0,3445.2,3444.5,2.3369]
[1718683995912,2.10977777,3445.1,3444.5,2.3369]
[1718683996096,2.10977777,3445.0,3444.5,2.3369]
[1718683996299,2.10977777,3444.9,3444.5,2.3369]
[1718683996504,0.50235293,3445.3,3444.6,5.32278]
[1718683996721,2.10943445,3445.2,3444.7,2.47775049]
[1718683996912,7.43,3445.4,3444.7,2.47775049]
[1718683997234,2.10939544,3445.3,3444.9,2.4197]
[1718683997802,7.43,3445.4,3444.9,2.4197]
[1718683998203,2.1093334,3445.3,3444.9,2.4197]
[1718683999503,2.1093334,3445.3,3445.0,0.05805045]
[1718683999727,3.0,3445.7,3445.0,2.34095045]
[1718683999927,4.21860864,3445.6,3445.1,0.29073586]
[1718684000110,2.10929457,3445.5,3445.1,0.34878214]
[1718684000316,2.10929457,3445.4,3445.1,0.29073586]
[1718684000537,2.10929457,3445.3,3445.1,0.29073586]
[1718684000738,2.10929457,3445.2,3445.1,0.29073586]
[1718684001728,2.10929457,3445.8,3445.1,0.29073586]
[1718684001951,4.21865187,3445.7,3445.0,2.2829]
[1718684002247,4.21865187,3445.6,3445.0,2.2829]
[1718684002448,4.21865187,3445.5,3445.0,2.2829]
[1718684002606,2.10929457,3445.4,3445.0,2.2829]
[1718684002806,2.10929457,3445.3,3445.1,0.28443521]
[1718684003046,2.10929457,3445.2,3445.1,0.28443521]
[1718684003210,2.10929457,3445.8,3445.1,0.28443521]
[1718684003411,2.10929457,3445.7,3445.1,0.28443521]
[1718684003621,2.10929457,3445.6,3445.1,0.28443521]
[1718684003834,2.10929457,3445.5,3445.1,0.28443521]
[1718684004038,2.10929457,3445.4,3445.1,0.28443521]
[1718684004257,2.10929457,3445.3,3445.1,0.28443521]
[1718684004547,2.10929457,3445.2,3445.1,0.28443521]
[1718684004840,2.10929457,3445.8,3445.1,0.28443521]
[1718684005011,2.10929457,3445.7,3445.0,2.2829]
[1718684005207,2.10929457,3445.6,3445.0,2.2829]
[1718684005445,2.10929457,3445.5,3445.0,2.2829]
[1718684005652,2.10929457,3445.4,3445.1,0.05804654]
[1718684005852,0.50224033,3446.0,3445.2,3.2267]
[1718684005853,2.10929457,3445.3,3445.2,3.2267]
[1718684006033,7.93224033,3446.1,3445.4,2.3667]
[1718684006363,2.10907559,3446.0,3445.5,0.05803968]
[1718684009023,2.10907559,3446.0,3445.6,0.86]
[1718684009224,4.0240001,3447.2,3446.0,2.3205]
[1718684009458,0.86,3447.0,3446.0,3.1805]
[1718684009765,0.86,3446.8,3446.0,2.3205]
[1718684009956,2.10862001,3446.7,3446.0,2.3205]
[1718684010341,2.10862001,3446.7,3446.0,2.92875]
[1718684011031,2.10862001,3446.7,3446.0,2.3205]
[1718684011249,0.86,3446.5,3446.0,2.3205]
[1718684011549,7.43,3446.9,3446.0,2.3205]
[1718684011969,2.10881495,3446.8,3446.0,2.3205]
[1718684012171,0.95388149,3446.7,3446.0,2.3205]
[1718684012385,2.10881495,3446.6,3446.0,2.3205]
[1718684013644,7.43,3446.9,3446.0,2.3205]
[1718684013845,2.10879096,3446.8,3446.0,2.3205]
[1718684017280,2.10879096,3446.7,3446.0,2.3205]
[1718684017438,2.56606306,3447.1,3446.0,2.842762]
[1718684017439,3.0,3447.0,3446.0,2.842762]
[1718684017637,2.10877518,3446.9,3446.0,2.3205]
[1718684018435,2.10877518,3446.9,3446.1,0.05803146]
[1718684019336,2.10877518,3446.9,3446.2,2.4127]
[1718684020280,5.4663478,3447.5,3446.2,2.4127]
[1718684020574,3.44837759,3447.4,3446.2,2.4127]
[1718684020872,2.1085365,3447.3,3446.2,2.4127]
[1718684021049,0.0310478,3447.5,3446.1,2.3477]
[1718684021252,2.10845521,3447.4,3446.1,2.3477]
[1718684021579,2.10845521,3447.4,3446.4,2.90149]
[1718684021735,0.0310478,3447.5,3447.0,2.3477]
[1718684022092,0.0310478,3447.5,3447.1,0.05800932]
[1718684022395,0.0310478,3447.5,3447.0,2.3477]
[1718684029394,0.0310478,3447.5,3447.1,0.05801168]
[1718684029691,0.0310478,3447.5,3447.2,0.53067717]
[1718684029857,0.0290478,3447.5,3447.3,0.05801015]
[1718684030867,0.0290478,3447.5,3447.2,0.53067717]
[1718684031269,0.0290478,3447.5,3447.3,0.05801019]
[1718684032457,0.0290478,3447.5,3447.2,0.53067717]
[1718684032862,0.0290478,3447.5,3447.0,2.3477]
[1718684038295,0.0290478,3447.5,3447.1,0.05801246]
[1718684040396,0.0290478,3447.5,3447.3,0.86]
[1718684040698,0.0290478,3447.5,3447.4,2.55100628]
[1718684042720,0.0290478,3447.5,3447.4,8.35246628]
[1718684042893,0.0290478,3447.5,3447.4,13.11379591]
[1718684043079,0.0290478,3447.5,3447.4,13.97379591]
[1718684044085,0.0290478,3447.5,3447.4,13.91578963]
[1718684044289,0.0290478,3447.5,3447.4,4.21132963]
[1718684044493,0.0290478,3447.5,3447.4,1.21132963]
[1718684045284,0.0290478,3447.5,3447.4,3.62032963]
[1718684045491,0.0290478,3447.5,3447.4,12.97178963]
[1718684046719,0.00191995,3448.0,3447.9,2.90031]
[1718684046879,0.00191995,3448.0,3447.9,9.47352]
[1718684047087,0.00191995,3448.0,3447.9,12.47352]
[1718684047284,0.00191995,3448.0,3447.9,9.47352]
[1718684047924,0.00191995,3448.0,3447.9,6.57321]
[1718684048214,0.00019404,3448.0,3447.9,7.810625]
[1718684048418,0.00019404,3448.0,3447.9,10.710935]
[1718684048577,0.1089632,3448.4,3448.3,5.22577]
[1718684048782,0.1089632,3448.4,3448.3,9.63577]
[1718684049022,0.1089632,3448.4,3448.3,10.599347]
[1718684049197,0.01101382,3448.4,3448.3,10.599347]
[1718684049392,0.01101382,3448.4,3448.3,15.539287]
[1718684050436,0.01101382,3448.4,3448.3,9.739347]
[1718684052050,0.01101382,3448.4,3448.3,0.963577]
[1718684052187,0.01101382,3448.4,3447.9,2.4942]
[1718684052555,2.36571382,3448.4,3447.1,2.4942]
[1718684052686,2.36571382,3448.4,3447.2,2.9009]
[1718684053046,0.01101382,3448.4,3447.6,2.253]
[1718684053193,0.01101382,3448.4,3447.7,0.05799661]
[1718684053387,0.01101382,3448.4,3447.6,2.253]
[1718684054322,2.3136,3448.3,3447.3,0.82961]
[1718684054524,2.3136,3448.3,3447.0,5.90101]
[1718684055329,2.3136,3448.3,3447.1,2.90098]
[1718684055533,2.3136,3448.3,3447.2,3.0]
[1718684057272,2.3136,3448.3,3446.8,7.29094]
[1718684057560,2.3136,3448.3,3446.9,0.55]
[1718684057722,0.23246138,3448.2,3447.1,2.90094]
[1718684057923,2.3136,3448.3,3447.1,2.90094]
[1718684058345,2.3136,3448.3,3447.0,0.577994]
[1718684059069,2.3136,3448.3,3447.0,3.577994]
[1718684059374,2.3136,3448.3,3447.0,0.577994]
[1718684059528,0.23246138,3448.2,3447.1,0.9357934]
[1718684061369,2.3136,3448.3,3447.1,0.9357934]
[1718684062536,2.3136,3448.3,3447.0,0.577994]